fUSD/lending_fUSD_20241121
["ID","MTS","AMOUNT","RATE_DAILY","PERIOD"]
[342911154,1732203043250,-500.0,0.00041095,18]
[342911155,1732203043260,-500.0,0.00041095,18]
[342911156,1732203043269,-500.0,0.00041095,18]
[342911157,1732203043279,-500.0,0.00041095,18]
[342911158,1732203043290,-500.0,0.00041095,18]
[342911159,1732203043301,-652.24,0.00041095,18]
[342911160,1732203043310,-500.0,0.00041095,18]
[342911161,1732203043319,-500.0,0.00041095,18]
[342911162,1732203043329,-500.0,0.00041095,18]
[342911163,1732203043338,-500.0,0.00041095,18]
[342911164,1732203043348,-851.64,0.00041095,18]
[342911165,1732203043359,-500.0,0.00041095,18]
[342911166,1732203043369,-500.0,0.00041095,18]
[342911167,1732203043379,-567.46,0.00041095,18]
[342911168,1732203043388,-500.0,0.00041095,18]
[342911169,1732203043397,-1006.3,0.00041095,18]
[342911170,1732203043406,-500.0,0.00041095,18]
[342911171,1732203043415,-500.0,0.00041095,18]
[342911172,1732203043424,-500.0,0.00041095,18]
[342911173,1732203043434,-500.0,0.00041095,18]
[342911174,1732203043443,-500.0,0.00041095,18]
[342911175,1732203043459,-500.0,0.00041095,18]
[342911176,1732203043469,-614.6,0.00041095,18]
[342911177,1732203043479,-500.0,0.00041095,18]
[342911178,1732203043489,-500.0,0.00041095,18]
[342911179,1732203043499,-795.12,0.00041095,18]
[342911180,1732203043508,-917.1,0.00041095,18]
[342911181,1732203043517,-525.37,0.00041095,18]
[342911182,1732203043527,-953.17,0.00041095,18]
[342911183,1732203043536,-500.0,0.00041095,18]
[342911184,1732203043545,-500.0,0.00041095,18]
[342911185,1732203043555,-500.0,0.00041095,18]
[342911186,1732203043564,-993.79,0.00041095,18]
[342911187,1732203043574,-879.52,0.00041095,18]
[342911188,1732203043584,-500.0,0.00041095,18]
[342911189,1732203043594,-500.0,0.00041095,18]
[342911190,1732203043604,-1023.5,0.00041095,18]
[342911191,1732203043614,-771.47,0.00041095,18]
[342911193,1732203043623,-515.06164142,0.00041095,18]
[342911195,1732203043633,-500.0,0.00041095,18]
[342911197,1732203043643,-551.74,0.00041095,18]
[342911199,1732203043652,-500.0,0.00041095,18]
[342911201,1732203043662,-500.0,0.00041095,18]
[342911203,1732203043671,-500.0,0.00041095,18]
[342911205,1732203043680,-560.57,0.00041095,18]
[342911207,1732203043691,-500.0,0.00041095,18]
[342911209,1732203043708,-500.0,0.00041095,18]
[342911210,1732203043718,-640.52,0.00041095,18]
[342911212,1732203043727,-500.0,0.00041095,18]
[342911214,1732203043737,-1083.77,0.00041095,18]
[342911216,1732203043747,-500.0,0.00041095,18]
[342911217,1732203043758,-500.0,0.00041095,18]
[342911218,1732203043770,-404.01722918,0.00041095,18]
[342911219,1732203043780,-500.0,0.00041095,18]
[342911220,1732203043789,-500.0,0.00041095,18]
[342911221,1732203043799,-600.51881549,0.00041095,18]
[342911222,1732203043809,-500.0,0.00041095,18]
[342911223,1732203043818,-1588.78,0.00041095,18]
[342911225,1732203043828,-500.0,0.00041095,18]
[342911227,1732203043837,-1105.86,0.00041095,18]
[342911229,1732203043847,-500.0,0.00041095,18]
[342911231,1732203043857,-500.0,0.00041095,18]
[342911233,1732203043867,-500.0,0.00041095,18]
[342911235,1732203043876,-974.33,0.00041095,18]
[342911237,1732203043885,-500.0,0.00041095,18]
[342911239,1732203043895,-500.0,0.00041095,18]
[342911240,1732203043904,-500.0,0.00041095,18]
[342911241,1732203043913,-500.0,0.00041095,18]
[342911242,1732203043924,-500.0,0.00041095,18]
[342911243,1732203043933,-500.0,0.00041095,18]
[342911244,1732203043943,-1277.05,0.00041095,18]
[342911245,1732203043962,-500.0,0.00041095,18]
[342911246,1732203043973,-500.0,0.00041095,18]
[342911247,1732203043982,-500.0,0.00041095,18]
[342911248,1732203043991,-500.0,0.00041095,18]
[342911249,1732203044001,-786.73,0.00041095,18]
[342911250,1732203044010,-500.0,0.00041095,18]
[342911251,1732203044020,-500.0,0.00041095,18]
[342911252,1732203044030,-500.0,0.00041095,18]
[342911253,1732203044039,-500.0,0.00041095,18]
[342911254,1732203044049,-500.0,0.00041095,18]
[342911255,1732203044058,-1641.18,0.00041095,18]
[342911256,1732203044068,-500.0,0.00041095,18]
[342911257,1732203044078,-500.0,0.00041095,18]
[342911258,1732203044088,-916.52,0.00041095,18]
[342911259,1732203044097,-500.0,0.00041095,18]
[342911260,1732203044107,-520.1,0.00041095,18]
[342911261,1732203044117,-500.0,0.00041095,18]
[342911262,1732203044127,-669.71,0.00041095,18]
[342911263,1732203044137,-533.76,0.00041095,18]
[342911264,1732203044147,-650.4,0.00041095,18]
[342911265,1732203044156,-1305.08,0.00041095,18]
[342911266,1732203044166,-500.0,0.00041095,18]
[342911267,1732203044176,-500.0,0.00041095,120]
[342911268,1732203044184,-650.25,0.00041095,18]
[342911269,1732203044193,-500.0,0.00041095,18]
[342911270,1732203044211,-500.0,0.00041095,18]
[342911271,1732203044221,-926.39,0.00041095,18]
[342911272,1732203044231,-731.05,0.00041095,18]
[342911273,1732203044240,-500.0,0.00041095,18]
[342911274,1732203044250,-500.0,0.00041095,18]
[342911275,1732203044260,-500.0,0.00041095,18]
[342911276,1732203044270,-500.0,0.00041095,18]
[342911277,1732203044280,-500.0,0.00041095,18]
[342911278,1732203044290,-500.0,0.00041095,18]
[342911279,1732203044299,-500.0,0.00041095,18]
[342911280,1732203044309,-500.0,0.00041095,18]
[342911281,1732203044318,-624.75,0.00041095,18]
[342911282,1732203044328,-500.0,0.00041095,18]
[342911283,1732203044337,-500.0,0.00041095,18]
[342911284,1732203044346,-812.55,0.00041095,18]
[342911285,1732203044356,-500.0,0.00041095,18]
[342911286,1732203044366,-720.96,0.00041095,18]
[342911287,1732203044376,-500.0,0.00041095,18]
[342911288,1732203044386,-1901.24,0.00041095,18]
[342911289,1732203044396,-500.0,0.00041095,18]
[342911290,1732203044406,-500.0,0.00041095,18]
[342911291,1732203044415,-500.0,0.00041095,18]
[342911292,1732203044425,-500.0,0.00041095,18]
[342911293,1732203044434,-10680.0,0.00041095,18]
[342911294,1732203044443,-765.15,0.00041095,18]
[342911295,1732203044459,-506.65,0.00041095,18]
[342911296,1732203044469,-797.84,0.00041095,18]
[342911297,1732203044479,-500.0,0.00041095,18]
[342911298,1732203044488,-500.0,0.00041095,18]
[342911299,1732203044498,-500.0,0.00041095,18]
[342911300,1732203044507,-576.03,0.00041095,18]
[342911301,1732203044516,-865.82,0.00041095,18]
[342911302,1732203044525,-500.0,0.00041095,18]
[342911303,1732203044534,-500.0,0.00041095,18]
[342911304,1732203044543,-1451.99,0.00041095,18]
[342911305,1732203044553,-500.0,0.00041095,18]
[342911306,1732203044563,-500.0,0.00041095,18]
[342911307,1732203044573,-500.0,0.00041095,18]
[342911308,1732203044583,-500.0,0.00041095,18]
[342911309,1732203044592,-1607.31,0.00041095,18]
[342911310,1732203044602,-500.0,0.00041095,18]
[342911311,1732203044611,-500.0,0.00041095,18]
[342911312,1732203044621,-667.34,0.00041095,18]
[342911313,1732203044630,-500.0,0.00041095,18]
[342911314,1732203044640,-1658.0,0.00041095,18]
[342911315,1732203044649,-500.0,0.00041095,18]
[342911316,1732203044659,-500.0,0.00041095,18]
[342911317,1732203044668,-1606.84,0.00041095,18]
[342911318,1732203044677,-1268.07,0.00041095,18]
[342911319,1732203044687,-537.46,0.00041095,18]
[342911320,1732203044696,-2509.52,0.00041095,18]
[342911321,1732203044710,-500.0,0.00041095,18]
[342911322,1732203044719,-803.03,0.00041095,18]
[342911323,1732203044729,-500.0,0.00041095,18]
[342911324,1732203044738,-500.0,0.00041095,18]
[342911325,1732203044747,-500.0,0.00041095,18]
[342911326,1732203044757,-996.26,0.00041095,18]
[342911327,1732203044766,-3353.2,0.00041095,18]
[342911328,1732203044779,-500.0,0.00041095,18]
[342911329,1732203044789,-500.0,0.00041095,18]
[342911330,1732203044799,-806.82,0.00041095,18]
[342911331,1732203044807,-623.97,0.00041095,18]
[342911332,1732203044818,-500.0,0.00041095,18]
[342911333,1732203044827,-500.0,0.00041095,18]
[342911334,1732203044837,-500.0,0.00041095,18]
[342911335,1732203044848,-500.0,0.00041095,7]
[342911336,1732203044857,-500.0,0.00041095,18]
[342911337,1732203044866,-500.0,0.00041095,18]
[342911338,1732203044875,-500.0,0.00041095,18]
[342911339,1732203044884,-500.0,0.00041095,18]
[342911340,1732203044894,-500.0,0.00041095,18]
[342911341,1732203044904,-1070.68,0.00041095,18]
[342911342,1732203044913,-1008.71,0.00041095,18]
[342911343,1732203044923,-500.0,0.00041095,18]
[342911344,1732203044933,-930.53,0.00041095,18]
[342911345,1732203044942,-500.0,0.00041095,18]
[342911346,1732203044958,-988.17,0.00041095,18]
[342911347,1732203044968,-500.0,0.00041095,18]
[342911348,1732203044977,-500.0,0.00041095,18]
[342911349,1732203044987,-500.0,0.00041095,18]
[342911350,1732203044996,-506.34,0.00041095,18]
[342911351,1732203045005,-1325.85,0.00041095,18]
[342911352,1732203045014,-500.0,0.00041095,18]
[342911353,1732203045023,-1231.05,0.00041095,18]
[342911354,1732203045034,-3923.09,0.00041095,18]
[342911355,1732203045043,-613.27,0.00041095,18]
[342911356,1732203045053,-642.03,0.00041095,18]
[342911357,1732203045063,-500.0,0.00041095,18]
[342911358,1732203045073,-2493.49,0.00041095,18]
[342911359,1732203045083,-951.77,0.00041095,18]
[342911360,1732203045093,-500.0,0.00041095,18]
[342911361,1732203045103,-1095.88,0.00041095,18]
[342911362,1732203045113,-1258.46,0.00041095,18]
[342911363,1732203045123,-1342.59,0.00041095,18]
[342911364,1732203045133,-831.99,0.00041095,18]
[342911365,1732203045143,-500.0,0.00041095,18]
[342911366,1732203045153,-825.55,0.00041095,18]
[342911367,1732203045163,-1517.83,0.00041095,18]
[342911368,1732203045173,-2436.07,0.00041095,18]
[342911369,1732203045182,-1140.98,0.00041095,18]
[342911370,1732203045192,-500.0,0.00041095,18]
[342911371,1732203045209,-500.0,0.00041095,18]
[342911372,1732203045220,-715.65,0.00041095,18]
[342911373,1732203045230,-532.56,0.00041095,18]
[342911374,1732203045240,-1429.85,0.00041095,18]
[342911375,1732203045251,-500.0,0.00041095,18]
[342911376,1732203045262,-882.47,0.00041095,18]
[342911377,1732203045271,-4581.34,0.00041095,18]
[342911378,1732203045280,-3066.84,0.00041095,18]
[342911379,1732203045290,-673.52,0.00041095,7]
[342911380,1732203045300,-500.0,0.00041095,18]
[342911381,1732203045309,-537.67,0.00041095,18]
[342911382,1732203045319,-500.0,0.00041095,18]
[342911383,1732203045329,-500.0,0.00041095,18]
[342911384,1732203045339,-500.0,0.00041095,18]
[342911385,1732203045349,-500.0,0.00041095,18]
[342911386,1732203045358,-597.5,0.00041095,18]
[342911387,1732203045368,-500.0,0.00041095,18]
[342911388,1732203045378,-2272.21,0.00041095,18]
[342911389,1732203045388,-500.0,0.00041095,18]
[342911390,1732203045398,-1140.96,0.00041095,18]
[342911391,1732203045408,-1695.24,0.00041095,18]
[342911392,1732203045418,-500.0,0.00041095,18]
[342911393,1732203045427,-9426.66,0.00041095,2]
[342911394,1732203045437,-2207.11,0.00041095,18]
[342911395,1732203045446,-500.0,0.00041095,18]
[342911396,1732203045463,-772.2,0.00041095,18]
[342911397,1732203045473,-500.0,0.00041095,18]
[342911398,1732203045482,-504.29,0.00041095,18]
[342911399,1732203045491,-500.0,0.00041095,18]
[342911400,1732203045501,-500.0,0.00041095,18]
[342911401,1732203045511,-500.0,0.00041095,18]
[342911402,1732203045521,-500.0,0.00041095,18]
[342911403,1732203045530,-500.0,0.00041095,18]
[342911404,1732203045540,-638.86,0.00041095,18]
[342911405,1732203045550,-500.0,0.00041095,18]
[342911406,1732203045560,-1207.24,0.00041095,18]
[342911407,1732203045570,-500.0,0.00041095,18]
[342911408,1732203045580,-13746.66,0.00041095,18]
[342911409,1732203045590,-822.02,0.00041095,18]
[342911410,1732203045600,-500.0,0.00041095,18]
[342911411,1732203045610,-500.0,0.00041095,18]
[342911412,1732203045619,-701.3,0.00041095,18]
[342911413,1732203045629,-471.92730272,0.00041095,18]
[342911414,1732203045639,-500.0,0.00041095,18]
[342911415,1732203045648,-4447.59,0.00041095,18]
[342911416,1732203045658,-667.86,0.00041095,18]
[342911417,1732203045668,-260.35445454,0.00041095,2]
[342911418,1732203045678,-500.0,0.00041095,18]
[342911419,1732203045689,-500.0,0.00041095,18]
[342911420,1732203045703,-1274.46,0.00041095,18]
[342911421,1732203045713,-965.8,0.00041095,18]
[342911422,1732203045722,-500.0,0.00041095,18]
[342911423,1732203045732,-204.71778548,0.00041095,18]
[342911424,1732203045742,-654.42,0.00041095,18]
[342911425,1732203045752,-2163.44,0.00041095,18]
[342911426,1732203045766,-2707.92,0.00041095,18]
[342911427,1732203045776,-808.65,0.00041095,18]
[342911428,1732203045786,-500.0,0.00041095,18]
[342911429,1732203045796,-500.0,0.00041095,18]
[342911430,1732203045807,-157.0,0.00041096,2]
[342911431,1732203045817,-156.589,0.000411,120]
[342911432,1732203045827,-326.4307558,0.000411,2]
[342911433,1732203045839,-250.0,0.000411,2]
[342911434,1732203045850,-150.0,0.00041119,2]
[342911435,1732203045860,-150.0,0.00041144,2]
[342911436,1732203045870,-2138.36399,0.0004123,40]
[342911437,1732203045880,-1000.0,0.00041235,2]
[342911438,1732203045891,-214.32158654,0.00041275,2]
[342911439,1732203045901,-846.77,0.00041315,120]
[342911440,1732203045911,-2347.54,0.00041315,120]
[342911441,1732203045922,-150.0,0.00041332,2]
[342911443,1732203045932,-150.0,0.00041338,2]
[342911445,1732203045942,-500.0,0.00041368,18]
[342911447,1732203045957,-500.0,0.00041368,18]
[342911450,1732203045967,-500.0,0.00041368,18]
[342911452,1732203045977,-500.0,0.00041368,18]
[342911453,1732203045987,-500.0,0.00041368,18]
[342911455,1732203045997,-500.0,0.00041368,18]
[342911456,1732203046007,-500.0,0.00041368,18]
[342911458,1732203046016,-500.0,0.00041368,18]
[342911459,1732203046027,-500.0,0.00041368,18]
[342911460,1732203046037,-500.0,0.00041368,18]
[342911461,1732203046048,-500.0,0.00041368,18]
[342911462,1732203046058,-563.4,0.00041368,18]
[342911463,1732203046068,-636.75402308,0.00041368,18]
[342911464,1732203046078,-560.63,0.00041368,18]
[342911465,1732203046088,-528.13,0.00041368,18]
[342911467,1732203046098,-500.0,0.00041368,18]
[342911468,1732203046108,-500.0,0.00041368,18]
[342911469,1732203046118,-500.0,0.00041368,18]
[342911471,1732203046128,-500.0,0.00041368,18]
[342911473,1732203046138,-560.23,0.00041368,18]
[342911474,1732203046148,-500.0,0.00041368,18]
[342911475,1732203046158,-500.0,0.00041368,18]
[342911476,1732203046168,-500.0,0.00041368,18]
[342911477,1732203046178,-500.0,0.00041368,18]
[342911478,1732203046188,-500.0,0.00041368,18]
[342911479,1732203046199,-500.0,0.00041368,18]
[342911480,1732203046211,-500.0,0.00041368,18]
[342911481,1732203046221,-500.0,0.00041368,18]
[342911482,1732203046231,-500.0,0.00041368,18]
[342911483,1732203046241,-500.0,0.00041368,18]
[342911484,1732203046251,-500.0,0.00041368,18]
[342911485,1732203046262,-522.36,0.00041368,18]
[342911486,1732203046272,-500.0,0.00041368,18]
[342911487,1732203046282,-350.9783465,0.00041368,18]
[342911488,1732203046291,-500.0,0.00041368,18]
[342911489,1732203046301,-500.0,0.00041368,18]
[342911490,1732203046311,-500.0,0.00041368,18]
[342911491,1732203046321,-500.0,0.00041368,18]
[342911492,1732203046331,-500.0,0.00041368,18]
[342911493,1732203046342,-232.23468647,0.00041368,18]
[342911494,1732203046352,-638.76,0.00041368,18]
[342911495,1732203046363,-500.0,0.00041368,18]
[342911496,1732203046373,-500.0,0.00041368,18]
[342911497,1732203046383,-500.0,0.00041368,18]
[342911498,1732203046392,-500.0,0.00041368,18]
[342911499,1732203046402,-500.0,0.00041368,18]
[342911500,1732203046413,-500.0,0.00041368,18]
[342911501,1732203046424,-615.56,0.00041368,18]
[342911502,1732203046434,-500.0,0.00041368,18]
[342911503,1732203046444,-500.0,0.00041368,18]
[342911504,1732203046458,-500.0,0.00041368,18]
[342911505,1732203046468,-500.0,0.00041368,18]
[342911506,1732203046478,-500.0,0.00041368,18]
[342911507,1732203046488,-500.0,0.00041368,18]
[342911508,1732203046499,-500.0,0.00041368,18]
[342911509,1732203046508,-500.0,0.00041368,18]
[342911510,1732203046519,-530.62,0.00041368,18]
[342911511,1732203046528,-500.0,0.00041368,18]
[342911512,1732203046538,-500.0,0.00041368,18]
[342911513,1732203046548,-500.0,0.00041368,18]
[342911514,1732203046558,-567.13865339,0.00041368,18]
[342911515,1732203046568,-500.0,0.00041368,18]
[342911516,1732203046579,-500.0,0.00041368,18]
[342911517,1732203046589,-500.0,0.00041368,18]
[342911518,1732203046599,-500.0,0.00041368,18]
[342911519,1732203046608,-500.0,0.00041368,18]
[342911520,1732203046618,-500.0,0.00041368,18]
[342911521,1732203046627,-500.0,0.00041368,18]
[342911522,1732203046637,-527.83,0.00041368,18]
[342911523,1732203046647,-500.0,0.00041368,18]
[342911524,1732203046657,-500.0,0.00041368,18]
[342911525,1732203046667,-500.0,0.00041368,18]
[342911527,1732203046676,-500.0,0.00041368,18]
[342911529,1732203046686,-500.0,0.00041368,18]
[342911531,1732203046696,-500.0,0.00041368,18]
[342911533,1732203046713,-840.51,0.00041368,18]
[342911535,1732203046723,-500.0,0.00041368,18]
[342911537,1732203046733,-500.0,0.00041368,18]
[342911540,1732203046743,-500.0,0.00041368,18]
[342911542,1732203046754,-500.0,0.00041368,18]
[342911543,1732203046764,-500.0,0.00041368,18]
[342911545,1732203046777,-500.0,0.00041368,18]
[342911546,1732203046787,-500.0,0.00041368,18]
[342911547,1732203046796,-500.0,0.00041368,18]
[342911548,1732203046808,-500.0,0.00041368,18]
[342911549,1732203046818,-500.0,0.00041368,18]
[342911550,1732203046829,-500.0,0.00041368,18]
[342911551,1732203046839,-211.86833263,0.00041368,18]
[342911552,1732203046850,-500.0,0.00041368,18]
[342911553,1732203046861,-587.1,0.00041368,18]
[342911554,1732203046871,-500.0,0.00041368,18]
[342911555,1732203046882,-500.0,0.00041368,18]
[342911556,1732203046892,-500.0,0.00041368,18]
[342911557,1732203046902,-500.0,0.00041368,18]
[342911558,1732203046913,-500.0,0.00041368,18]
[342911559,1732203046924,-482.34019395,0.00041368,18]
[342911560,1732203046935,-500.0,0.00041368,18]
[342911561,1732203046946,-500.0,0.00041368,18]
[342911562,1732203046963,-500.0,0.00041368,18]
[342911563,1732203046974,-500.0,0.00041368,18]
[342911564,1732203046984,-500.0,0.00041368,18]
[342911565,1732203046995,-500.0,0.00041368,18]
[342911566,1732203047005,-500.0,0.00041368,18]
[342911568,1732203047015,-500.0,0.00041368,18]
[342911570,1732203047025,-500.0,0.00041368,18]
[342911572,1732203047035,-500.0,0.00041368,18]
[342911574,1732203047044,-500.0,0.00041368,18]
[342911576,1732203047054,-500.0,0.00041368,18]
[342911578,1732203047064,-500.0,0.00041368,18]
[342911580,1732203047074,-500.0,0.00041368,18]
[342911582,1732203047084,-500.0,0.00041368,18]
[342911585,1732203047094,-500.0,0.00041368,18]
[342911587,1732203047103,-500.0,0.00041368,18]
[342911589,1732203047113,-500.0,0.00041368,18]
[342911591,1732203047123,-642.72,0.00041368,18]
[342911593,1732203047132,-500.0,0.00041368,18]
[342911595,1732203047142,-500.0,0.00041368,18]
[342911597,1732203047151,-500.0,0.00041368,18]
[342911599,1732203047162,-669.32,0.00041368,18]
[342911601,1732203047172,-500.0,0.00041368,18]
[342911603,1732203047182,-500.0,0.00041368,18]
[342911608,1732203047228,-500.0,0.00041368,18]
[342911610,1732203047243,-695.72,0.00041368,18]
[342911612,1732203047252,-304.83283163,0.00041368,18]
[342911614,1732203047262,-500.0,0.00041368,18]
[342911616,1732203047273,-500.0,0.00041368,18]
[342911618,1732203047283,-500.0,0.00041368,18]
[342911620,1732203047293,-500.0,0.00041368,18]
[342911622,1732203047302,-500.0,0.00041368,18]
[342911624,1732203047311,-500.0,0.00041368,18]
[342911626,1732203047321,-500.0,0.00041368,18]
[342911628,1732203047331,-500.0,0.00041368,18]
[342911630,1732203047340,-500.0,0.00041368,18]
[342911632,1732203047350,-500.0,0.00041368,18]
[342911634,1732203047360,-500.0,0.00041368,18]
[342911636,1732203047370,-500.0,0.00041368,18]
[342911638,1732203047379,-500.0,0.00041368,18]
[342911640,1732203047388,-500.0,0.00041368,18]
[342911642,1732203047398,-500.0,0.00041368,18]
[342911644,1732203047408,-500.0,0.00041368,18]
[342911646,1732203047418,-500.0,0.00041368,18]
[342911648,1732203047427,-500.0,0.00041368,18]
[342911650,1732203047437,-500.0,0.00041368,18]
[342911652,1732203047447,-500.0,0.00041368,18]
[342911654,1732203047462,-500.0,0.00041368,18]
[342911656,1732203047472,-1267.04,0.00041368,18]
[342911658,1732203047482,-500.0,0.00041368,18]
[342911660,1732203047491,-500.0,0.00041368,18]
[342911662,1732203047501,-948.43,0.00041368,18]
[342911664,1732203047512,-500.0,0.00041368,18]
[342911666,1732203047522,-500.0,0.00041368,18]
[342911668,1732203047532,-500.0,0.00041368,18]
[342911670,1732203047542,-500.0,0.00041368,18]
[342911672,1732203047551,-500.0,0.00041368,18]
[342911684,1732203047839,-500.0,0.00041368,18]
[342911685,1732203047858,-500.0,0.00041368,18]
[342911686,1732203047869,-500.0,0.00041368,18]
[342911687,1732203047878,-520.62,0.00041368,18]
[342911688,1732203047888,-500.0,0.00041368,18]
[342911689,1732203047898,-500.0,0.00041368,18]
[342911690,1732203047908,-500.0,0.00041368,18]
[342911691,1732203047917,-500.0,0.00041368,18]
[342911692,1732203047927,-552.9,0.00041368,18]
[342911693,1732203047936,-500.0,0.00041368,18]
[342911694,1732203047946,-500.0,0.00041368,18]
[342911695,1732203047958,-500.0,0.00041368,18]
[342911696,1732203047968,-500.0,0.00041368,18]
[342911697,1732203047978,-500.0,0.00041368,18]
[342911698,1732203047987,-500.0,0.00041368,18]
[342911699,1732203047997,-500.0,0.00041368,18]
[342911700,1732203048007,-500.0,0.00041368,18]
[342911701,1732203048016,-500.0,0.00041368,18]
[342911702,1732203048028,-500.0,0.00041368,18]
[342911703,1732203048038,-500.0,0.00041368,18]
[342911704,1732203048049,-500.0,0.00041368,18]
[342911705,1732203048059,-500.0,0.00041368,18]
[342911706,1732203048069,-500.0,0.00041368,18]
[342911707,1732203048080,-500.0,0.00041368,18]
[342911708,1732203048090,-500.0,0.00041368,18]
[342911709,1732203048099,-500.0,0.00041368,18]
[342911710,1732203048109,-500.0,0.00041368,18]
[342911711,1732203048119,-500.0,0.00041368,18]
[342911712,1732203048129,-500.0,0.00041368,18]
[342911713,1732203048138,-500.0,0.00041368,18]
[342911714,1732203048148,-500.0,0.00041368,18]
[342911715,1732203048159,-500.0,0.00041368,18]
[342911716,1732203048168,-500.0,0.00041368,18]
[342911717,1732203048178,-500.0,0.00041368,18]
[342911718,1732203048188,-500.0,0.00041368,18]
[342911719,1732203048198,-500.0,0.00041368,18]
[342911720,1732203048211,-500.0,0.00041368,18]
[342911721,1732203048221,-500.0,0.00041368,18]
[342911722,1732203048230,-500.0,0.00041368,18]
[342911723,1732203048240,-500.0,0.00041368,18]
[342911724,1732203048250,-500.0,0.00041368,18]
[342911725,1732203048260,-500.0,0.00041368,18]
[342911726,1732203048270,-500.0,0.00041368,18]
[342911727,1732203048280,-500.0,0.00041368,18]
[342911728,1732203048290,-500.0,0.00041368,18]
[342911729,1732203048300,-351.05470805,0.00041368,18]
[342911730,1732203048310,-500.0,0.00041368,18]
[342911731,1732203048320,-500.0,0.00041368,18]
[342911732,1732203048329,-500.0,0.00041368,18]
[342911733,1732203048339,-500.0,0.00041368,18]
[342911734,1732203048348,-500.0,0.00041368,18]
[342911735,1732203048358,-500.0,0.00041368,18]
[342911736,1732203048368,-500.0,0.00041368,18]
[342911737,1732203048378,-500.0,0.00041368,18]
[342911738,1732203048389,-2586.7,0.00041368,18]
[342911739,1732203048400,-500.0,0.00041368,18]
[342911740,1732203048410,-500.0,0.00041368,18]
[342911741,1732203048421,-500.0,0.00041368,18]
[342911742,1732203048431,-543.58,0.00041368,18]
[342911743,1732203048440,-500.0,0.00041368,18]
[342911744,1732203048450,-543.0,0.00041368,18]
[342911745,1732203048463,-500.0,0.00041368,18]
[342911746,1732203048473,-500.0,0.00041368,18]
[342911747,1732203048483,-500.0,0.00041368,18]
[342911748,1732203048493,-372.47237301,0.00041368,18]
[342911749,1732203048503,-661.91,0.00041368,18]
[342911750,1732203048513,-500.0,0.00041368,18]
[342911751,1732203048523,-500.0,0.00041368,18]
[342911752,1732203048533,-956.88,0.00041368,18]
[342911753,1732203048544,-500.0,0.00041368,18]
[342911754,1732203048553,-500.0,0.00041368,18]
[342911755,1732203048563,-500.0,0.00041368,18]
[342911756,1732203048573,-500.0,0.00041368,18]
[342911757,1732203048584,-887.91,0.00041368,18]
[342911758,1732203048594,-500.0,0.00041368,18]
[342911759,1732203048604,-500.0,0.00041368,18]
[342911760,1732203048614,-500.0,0.00041368,18]